Workbook

Sheet Calculator
C3: Residential Cost Comparison Calculator | K3: Updated 11/2/2016
C6: =IF(ISNUMBER(SEARCH("-1",D9)),"Enter Your Total Monthly Usage (kWh)","") -> Enter Your Total Monthly Usage (kWh) | E6: Select Your Billing Month | F6: Nov-Apr
C7: (usage details can typically be found on the third page of your bill) | E7: (select which range of months your bill falls in)
C8: Additional Rate Options
C9: Non-Basic Rate Schedule | D9: Basic Residential (E-1)
C10: =IF(VLOOKUP($D$9,Rates!$A$2:$H$14,3,FALSE)=FALSE,"","Summer Peak Usage (kWh)") ->  | F10: =IF(VLOOKUP($D$9,Rates!$A$2:$H$14,6,FALSE)=FALSE,"","Winter Peak Usage (kWh)") -> 
C11: =IF(VLOOKUP($D$9,Rates!$A$2:$H$14,4,FALSE)=FALSE,"","Summer Partial Peak Usage (kWh)") ->  | F11: =IF(VLOOKUP($D$9,Rates!$A$2:$H$14,7,FALSE)=FALSE,"","Winter Partial Peak Usage (kWh)") -> 
C12: =IF(VLOOKUP($D$9,Rates!$A$2:$H$14,5,FALSE)=FALSE,"","Summer Off Peak Usage (kWh)") ->  | F12: =IF(VLOOKUP($D$9,Rates!$A$2:$H$14,8,FALSE)=FALSE,"","Winter Off Peak Usage (kWh)") -> 
E14: Optional Information (Default Values Represent a Typical Customer)
C15: Days in Billing Cycle | D15: 31 | F15: Baseline Territory (click for map) | G15: X
C16: Primary Heating Source | D16: Gas | F16: Date of Enrollment in PCEA | G16: mm/dd/yyyy
E19: PCE EcoPlus | F19: PCE Eco100 | G19: PG&E Standard | H19: PG&E Solar Choice (50%) | I19: PG&E Solar Choice (100%)
D20: PG&E Delivery Costs | E20: =G20 -> 0 | F20: =G20 -> 0 | G20: =IFERROR('Data & Calculations'!B83,0) -> 0 | H20: =G20 -> 0 | I20: =G20 -> 0
D21: Generation Costs | E21: ='Data & Calculations'!C84 -> 0 | F21: =E21+IF('Data & Calculations'!I63<0,0,'Data & Calculations'!I63*'Data & Calculations'!B74) -> 0 | G21: ='Data & Calculations'!B84 -> 0 | H21: =G21+('Data & Calculations'!B79/2) -> 0 | I21: =G21+('Data & Calculations'!B79) -> 0
D22: Additional PG&E Fees | E22: ='Data & Calculations'!C85 -> 0 | F22: =E22 -> 0 | G22: 0 | H22: =I22/2 -> 0 | I22: ='Data & Calculations'!B78 -> 0
D23: Total Electric Charges | E23: =SUM(E20:E22) -> 0 | F23: =SUM(F20:F22) -> 0 | G23: =SUM(G20:G22) -> 0 | H23: =SUM(H20:H22) -> 0 | I23: =SUM(I20:I22) -> 0
C26: Frequently Asked Questions:
C27: Q: I have a CARE (California Affordable Rates for Energy) discount. Will I still receive this with PCE?
C28: A: CARE is a state-mandated program, and you'll receive the same discount as before. You can select CARE rates under Advanced Options above.
C30: Q: I have medical equipment at home and am granted a special rate by PG&E (Medical Baseline). Will I still receive this with PCE?
C31: A: PCEA customers remain eligible for medical baseline and will still receive this discount in-full. Additionally, they are exempt from additional PG&E fees.
C33: Q: Does PCE offer special rates for Electric Vehicle owners?
C34: A: Yes, select "Advanced Options" above and select the Electric Vehicle rate. You will need to enter your time-of-use based usage.
C36: Q: Are PCE customers exempt from tiered rates, where I pay higher rates as I use more electricity each month?
C37: A: No. Tiered rates are part of the utility structure mandated by the California Public Utilities Commission, and are assessed through PG&E delivery charges.

Sheet Data & Calculations (hidden)
A1: Determined Bundled Rate (automated)
A2: =Calculator!D9 -> Basic Residential (E-1) | B2: =Rates!B2 -> All Usage | C2: =Rates!C2 -> S Pk | D2: =Rates!D2 -> S Pt | E2: =Rates!E2 -> S Off | F2: =Rates!F2 -> W Pk | G2: =Rates!G2 -> W Pt | H2: =Rates!H2 -> W Off | I2: =Rates!I2 -> Meter Charge | J2: =Rates!J2 -> Minimum Bill
A3: Tier 1 | B3: =VLOOKUP(Calculator!$D$9,Rates!$A$3:$AJ$16,MATCH(B$2,Rates!$A$2:$J$2,0),FALSE) -> 0.18353 | C3: =VLOOKUP(Calculator!$D$9,Rates!$A$3:$AJ$16,MATCH(C$2,Rates!$A$2:$J$2,0),FALSE) -> FALSE | D3: =VLOOKUP(Calculator!$D$9,Rates!$A$3:$AJ$16,MATCH(D$2,Rates!$A$2:$J$2,0),FALSE) -> FALSE | E3: =VLOOKUP(Calculator!$D$9,Rates!$A$3:$AJ$16,MATCH(E$2,Rates!$A$2:$J$2,0),FALSE) -> FALSE | F3: =VLOOKUP(Calculator!$D$9,Rates!$A$3:$AJ$16,MATCH(F$2,Rates!$A$2:$J$2,0),FALSE) -> FALSE | G3: =VLOOKUP(Calculator!$D$9,Rates!$A$3:$AJ$16,MATCH(G$2,Rates!$A$2:$J$2,0),FALSE) -> FALSE | H3: =VLOOKUP(Calculator!$D$9,Rates!$A$3:$AJ$16,MATCH(H$2,Rates!$A$2:$J$2,0),FALSE) -> FALSE | I3: =_xlfn.IFNA(VLOOKUP(Calculator!$D$9,Rates!$A$3:$AJ$16,MATCH(I$2,Rates!$A$2:$J$2,0),FALSE),0) ->  | J3: =_xlfn.IFNA(VLOOKUP(Calculator!$D$9,Rates!$A$3:$AJ$16,MATCH(J2,Rates!$A$2:$J$2,0),FALSE),0) -> 
A4: Tier 2 | B4: =VLOOKUP(Calculator!$D$9,Rates!$A$3:$AJ$16,MATCH(B$2,Rates!$A$2:$J$2,0)+10,FALSE) -> 0.24276 | C4: =VLOOKUP(Calculator!$D$9,Rates!$A$3:$AJ$16,MATCH(C$2,Rates!$A$2:$J$2,0)+10,FALSE) -> FALSE | D4: =VLOOKUP(Calculator!$D$9,Rates!$A$3:$AJ$16,MATCH(D$2,Rates!$A$2:$J$2,0)+10,FALSE) -> FALSE | E4: =VLOOKUP(Calculator!$D$9,Rates!$A$3:$AJ$16,MATCH(E$2,Rates!$A$2:$J$2,0)+10,FALSE) -> FALSE | F4: =VLOOKUP(Calculator!$D$9,Rates!$A$3:$AJ$16,MATCH(F$2,Rates!$A$2:$J$2,0)+10,FALSE) -> FALSE | G4: =VLOOKUP(Calculator!$D$9,Rates!$A$3:$AJ$16,MATCH(G$2,Rates!$A$2:$J$2,0)+10,FALSE) -> FALSE | H4: =VLOOKUP(Calculator!$D$9,Rates!$A$3:$AJ$16,MATCH(H$2,Rates!$A$2:$J$2,0)+10,FALSE) -> FALSE
A5: Tier 3 | B5: =VLOOKUP(Calculator!$D$9,Rates!$A$3:$AJ$16,MATCH(B$2,Rates!$A$2:$J$2,0)+19,FALSE) -> 0.24276 | C5: =VLOOKUP(Calculator!$D$9,Rates!$A$3:$AJ$16,MATCH(C$2,Rates!$A$2:$J$2,0)+19,FALSE) -> FALSE | D5: =VLOOKUP(Calculator!$D$9,Rates!$A$3:$AJ$16,MATCH(D$2,Rates!$A$2:$J$2,0)+19,FALSE) -> FALSE | E5: =VLOOKUP(Calculator!$D$9,Rates!$A$3:$AJ$16,MATCH(E$2,Rates!$A$2:$J$2,0)+19,FALSE) -> FALSE | F5: =VLOOKUP(Calculator!$D$9,Rates!$A$3:$AJ$16,MATCH(F$2,Rates!$A$2:$J$2,0)+19,FALSE) -> FALSE | G5: =VLOOKUP(Calculator!$D$9,Rates!$A$3:$AJ$16,MATCH(G$2,Rates!$A$2:$J$2,0)+19,FALSE) -> FALSE | H5: =VLOOKUP(Calculator!$D$9,Rates!$A$3:$AJ$16,MATCH(H$2,Rates!$A$2:$J$2,0)+19,FALSE) -> FALSE
A6: Tier 4 | B6: =VLOOKUP(Calculator!$D$9,Rates!$A$3:$AJ$16,MATCH(B$2,Rates!$A$2:$J$2,0)+28,FALSE) -> 0.40307 | C6: =VLOOKUP(Calculator!$D$9,Rates!$A$3:$AJ$16,MATCH(C$2,Rates!$A$2:$J$2,0)+28,FALSE) -> FALSE | D6: =VLOOKUP(Calculator!$D$9,Rates!$A$3:$AJ$16,MATCH(D$2,Rates!$A$2:$J$2,0)+28,FALSE) -> FALSE | E6: =VLOOKUP(Calculator!$D$9,Rates!$A$3:$AJ$16,MATCH(E$2,Rates!$A$2:$J$2,0)+28,FALSE) -> FALSE | F6: =VLOOKUP(Calculator!$D$9,Rates!$A$3:$AJ$16,MATCH(F$2,Rates!$A$2:$J$2,0)+28,FALSE) -> FALSE | G6: =VLOOKUP(Calculator!$D$9,Rates!$A$3:$AJ$16,MATCH(G$2,Rates!$A$2:$J$2,0)+28,FALSE) -> FALSE | H6: =VLOOKUP(Calculator!$D$9,Rates!$A$3:$AJ$16,MATCH(H$2,Rates!$A$2:$J$2,0)+28,FALSE) -> FALSE
A8: Determined Bundled Charges (automated)
A9: =A2 -> Basic Residential (E-1) | B9: =B2 -> All Usage | C9: S Pk | D9: S Pt | E9: S Off | F9: W Pk | G9: W Pt | H9: W Off | I9: Meter Charge | J9: Total
A10: =A3 -> Tier 1 | B10: =B3*C68 ->  | C10: =C3*D68 ->  | I10: =I3*Calculator!D15 -> 
A11: =A4 -> Tier 2 | B11: =B4*C69 ->  | C11: =C4*D69 -> 
A12: Tier 3 | B12: =B5*C70 ->  | C12: =C5*D70 -> 
A13: Tier 4 | B13: =B6*C71 ->  | C13: =C6*D71 -> 
A14: Total | B14: =SUM(B10:B13) ->  | C14: =SUM(C10:C13) ->  | I14: =_xlfn.IFNA(SUM(I10:I13),0) ->  | J14: =SUM(B14:I14) -> 
A16: Determined Generation Rates (automated)
A17: =A2 -> Basic Residential (E-1) | B17: =B2 -> All Usage | C17: =C2 -> S Pk | D17: S Pt | E17: S Off | F17: W Pk | G17: W Pt | H17: W Off | I17: NEM Bonus
A18: PGE | B18: =VLOOKUP(Calculator!$D$9,Rates!$A$21:$H$34,MATCH(B$17,Rates!$A$2:$J$2,0),FALSE) -> 0.09684 | C18: =VLOOKUP(Calculator!$D$9,Rates!$A$21:$H$34,MATCH(C$17,Rates!$A$2:$J$2,0),FALSE) -> FALSE | D18: =VLOOKUP(Calculator!$D$9,Rates!$A$21:$H$34,MATCH(D$17,Rates!$A$2:$J$2,0),FALSE) -> FALSE | E18: =VLOOKUP(Calculator!$D$9,Rates!$A$21:$H$34,MATCH(E$17,Rates!$A$2:$J$2,0),FALSE) -> FALSE | F18: =VLOOKUP(Calculator!$D$9,Rates!$A$21:$H$34,MATCH(F$17,Rates!$A$2:$J$2,0),FALSE) -> FALSE | G18: =VLOOKUP(Calculator!$D$9,Rates!$A$21:$H$34,MATCH(G$17,Rates!$A$2:$J$2,0),FALSE) -> FALSE | H18: =VLOOKUP(Calculator!$D$9,Rates!$A$21:$H$34,MATCH(H$17,Rates!$A$2:$J$2,0),FALSE) -> FALSE
A19: PCEA | B19: =VLOOKUP(Calculator!$D$9,Rates!$A$37:$H$50,MATCH(B$17,Rates!$A$2:$J$2,0),FALSE) -> 0.06815 | C19: =VLOOKUP(Calculator!$D$9,Rates!$A$37:$H$50,MATCH(C$17,Rates!$A$2:$J$2,0),FALSE) -> FALSE | D19: =VLOOKUP(Calculator!$D$9,Rates!$A$37:$H$50,MATCH(D$17,Rates!$A$2:$J$2,0),FALSE) -> FALSE | E19: =VLOOKUP(Calculator!$D$9,Rates!$A$37:$H$50,MATCH(E$17,Rates!$A$2:$J$2,0),FALSE) -> FALSE | F19: =VLOOKUP(Calculator!$D$9,Rates!$A$37:$H$50,MATCH(F$17,Rates!$A$2:$J$2,0),FALSE) -> FALSE | G19: =VLOOKUP(Calculator!$D$9,Rates!$A$37:$H$50,MATCH(G$17,Rates!$A$2:$J$2,0),FALSE) -> FALSE | H19: =VLOOKUP(Calculator!$D$9,Rates!$A$37:$H$50,MATCH(H$17,Rates!$A$2:$J$2,0),FALSE) -> FALSE | I19: =B74 -> 0.01
A21: Determined Generation Charges (automated)
A22: =A2 -> Basic Residential (E-1) | B22: =B2 -> All Usage | C22: S Pk | D22: S Pt | E22: S Off | F22: W Pk | G22: W Pt | H22: W Off | I22: NEM Bonus | J22: Total
A23: PGE | B23: =B18*B$63 -> 0 | C23: =C18*C$63 -> 0 | D23: 0 | E23: 0 | F23: 0 | G23: 0 | H23: 0 | J23: =SUM(B23:H23) -> 0
A24: PCEA | B24: =B19*B$63 -> 0 | C24: 0 | D24: 0 | E24: 0 | F24: 0 | G24: 0 | H24: 0 | I24: =SUMIF(B63:H63,"<0")*I19 -> 0 | J24: =SUM(B24:I24) -> 0
A26: Determined Delivery Charges (automated)
A27: =A2 -> Basic Residential (E-1) | B27: =B2 -> All Usage | C27: S Pk | D27: S Pt | E27: S Off | F27: W Pk | G27: W Pt | H27: W Off | I27: Meter Charge | J27: Total
A28: PGE | B28: =B$14-B23 ->  | C28: =C$14-C23 ->  | I28: =I10-I23 ->  | J28: =SUM(B28:I28) -> 
A29: PCEA | B29: =B$14-B24 ->  | I29: =I28 -> 
A31: Baseline Quantities (annual update)
A32: Basic (Gas) | B32: Summer | C32: Winter | E32: Electric | F32: Summer | G32: Winter
A33: T | B33: 7 | C33: 8.5 | E33: T | F33: 8.3 | G33: 14.9
A34: X | B34: 10.1 | C34: 10.9 | E34: X | F34: 9.3 | G34: 16.7
A36: Fees (annual update) | B36: PCIA | C36: FF | D36: Total
A37: Pre-2009 | B37: 0 | C37: 0.00082 | D37: =SUM(B37:C37) -> 0.00082
A38: 2009 | B38: 0.02073 | C38: 0.00064 | D38: 0.02137
A39: 2010 | B39: 0.02268 | C39: 0.00063 | D39: 0.02331
A40: 2011 | B40: 0.02342 | C40: 0.00062 | D40: 0.02404
A41: 2012 | B41: 0.02363 | C41: 0.00062 | D41: 0.02425
A42: 2013 | B42: 0.02326 | C42: 0.00062 | D42: 0.02388
A43: 2014 | B43: 0.02323 | C43: 0.00062 | D43: 0.02385
A44: 2015 | B44: 0.02323 | C44: 0.00062 | D44: 0.02385
A45: 2016 | B45: 0.02323 | C45: 0.00062 | D45: 0.02385
A50: Extra Fee Calculations (automated - DO NOT TOUCH; Vintage calculation needs to be updated periodically though)
A51: Normalized Vintage: | B51: =IF(D51<2009,A37,D51) -> 2016 | C51: Determined Vintage: | D51: =MIN(IFERROR(IF(MONTH(Calculator!G16)<7,YEAR(Calculator!G16)-1,YEAR(Calculator!G16)),MAX('Data & Calculations'!A37:A49)),MAX(A37:A49)) -> 2016
A52: Determined Fees: | B52: =VLOOKUP(B51,A37:D44,4) -> 0.02385 | C52: Franchise Only: | D52: =VLOOKUP(B51,A37:D44,3) -> 0.00062
A54: Delivery Rates (auto updates - DO NOT TOUCH)
A55: =A2 -> Basic Residential (E-1) | B55: =B2 -> All Usage | C55: S Pk | D55: S Pt | E55: S Off | F55: W Pk | G55: W Pt | H55: W Off | I55: Meter Charge
A56: Tier 1 | B56: =B3-B$18 -> 0.08669 | C56: =C3-C$18 -> 0 | D56: 0 | E56: 0 | F56: 0 | G56: 0 | H56: 0
A57: Tier 2 | B57: =B4-B$18 -> 0.14592 | C57: 0 | D57: 0 | E57: 0 | F57: 0 | G57: 0 | H57: 0 | I57: 0
A58: Tier 3 | B58: =B5-B$18 -> 0.14592 | C58: 0 | D58: 0 | E58: 0 | F58: 0 | G58: 0 | H58: 0 | I58: 0
A59: Tier 4 | B59: =B6-B$18 -> 0.30623 | C59: 0 | D59: 0 | E59: 0 | F59: 0 | G59: 0 | H59: 0 | I59: 0
A62: Total kWh (automated) | B62: All Usage | C62: S Pk | D62: S Pt | E62: S Off | F62: W Pk | G62: W Pt | H62: W Off | I62: Total
A63: All Usage | B63: =IF(B3=FALSE,0,Calculator!D6) -> 0 | C63: =IF(C3=FALSE,0,Calculator!D10) -> 0 | D63: =IF(D3=FALSE,0,Calculator!D11) -> 0 | E63: =IF(E3=FALSE,0,Calculator!D12) -> 0 | F63: =IF(F3=FALSE,0,Calculator!G10) -> 0 | G63: =IF(G3=FALSE,0,Calculator!G11) -> 0 | H63: =IF(H3=FALSE,0,Calculator!G12) -> 0 | I63: =SUM(B63:H63) -> 0
A64: Pct of Total | B64: =B63/$I$63 ->  | C64: =C63/$I$63 -> 
A66: Tiering Calculations (auto updates - DO NOT TOUCH)
A67: Calculated Baseline: | B67: =IF(AND(Calculator!D16="Gas",Calculator!G15="T",Calculator!F6="May-Oct"),B33,IF(AND(Calculator!D16="Gas",Calculator!G15="X",Calculator!F6="May-Oct"),B34,IF(AND(Calculator!D16="Gas",Calculator!G15="T",Calculator!F6="Nov-Apr"),C33,IF(AND(Calculator!D16="Gas",Calculator!G15="X",Calculator!F6="Nov-Apr"),C34,IF(AND(Calculator!D16="Electric",Calculator!G15="T",Calculator!F6="May-Oct"),F33,IF(AND(Calculator!D16="Electric",Calculator!G15="X",Calculator!F6="May-Oct"),F34,IF(AND(Calculator!D16="Electric",Calculator!G15="T",Calculator!F6="Nov-Apr"),G33,IF(AND(Calculator!D16="Electric",Calculator!G15="X",Calculator!F6="Nov-Apr"),G34,"ERROR")))))))) -> 10.9 | C67: =B62 -> All Usage | D67: S Pk | E67: S Pt | F67: S Off | G67: W Pk | H67: W Pt | I67: W Off | J67: Total Tier Allocation
A68: Tier 1 | B68: =B67*Calculator!D15 -> 337.9 | C68: =B$64*$J68 ->  | J68: =MIN(B68,I63) -> 0
A69: Tier 2 | B69: =B68*0.3 -> 101.37 | J69: =MIN(B69,I63-J68) -> 0
A70: Tier 3 | B70: =B68*0.7 -> 236.53 | J70: =MIN(B70,I63-J68-J69) -> 0
A71: Tier 4 | B71: all above | J71: =MAX(0,I63-J68-J69-J70) -> 0
A73: Misc Rates
A74: Eco100 Rate | B74: 0.01
A75: Minimum Bill | B75: =J3*Calculator!D15 ->  | C75: (automated)
A76: PG&E Solar Premium (kWh) | B76: 0.03581
A77: PG&E Solar Premium | B77: =B76*I63 -> 0 | C77: (automated)
A78: PG&E Solar PCIA | B78: =B45*I63 -> 0 | C78: (automated)
A79: … without PCIA | B79: =B77-B78 -> 0 | C79: (automated)
A81: Totals (automated)
B82: PG&E | C82: MCE
A83: Delivery | B83: =MAX(B75,J28) ->  | C83: =B83 -> 
A84: Generation | B84: =J23 -> 0 | C84: =J24 -> 0
A85: PCIA/FF | B85: 0 | C85: =B52*I63 -> 0
A86: Total | B86: =SUM(B83:B85) ->  | C86: =SUM(C83:C85) -> 

Sheet Rates (hidden)
A1: Bundled Rate
A2: Tier 1 | B2: All Usage | C2: S Pk | D2: S Pt | E2: S Off | F2: W Pk | G2: W Pt | H2: W Off | I2: Meter Charge | J2: Minimum Bill | K2: Tier 2 | L2: All Usage | M2: S Pk | N2: S Pt | O2: S Off | P2: W Pk | Q2: W Pt | R2: W Off | T2: Tier 3 | U2: All Usage | V2: S Pk | W2: S Pt | X2: S Off | Y2: W Pk | Z2: W Pt | AA2: W Off | AC2: Tier 4 | AD2: All Usage | AE2: S Pk | AF2: S Pt | AG2: S Off | AH2: W Pk | AI2: W Pt | AJ2: W Off
A3: Basic Residential (E-1) | B3: 0.18353 | C3: FALSE | D3: FALSE | E3: FALSE | F3: FALSE | G3: FALSE | H3: FALSE | J3: 0.32854 | K3: =A3 -> Basic Residential (E-1) | L3: 0.24276 | M3: FALSE | N3: FALSE | O3: FALSE | P3: FALSE | Q3: FALSE | R3: FALSE | T3: =K3 -> Basic Residential (E-1) | U3: =L3 -> 0.24276 | V3: FALSE | W3: FALSE | X3: FALSE | Y3: FALSE | Z3: FALSE | AA3: FALSE | AC3: =T3 -> Basic Residential (E-1) | AD3: 0.40307 | AE3: FALSE | AF3: FALSE | AG3: FALSE | AH3: FALSE | AI3: FALSE | AJ3: FALSE
A4: Basic CARE Res. (EL-1) | B4: 0.12025 | C4: FALSE | D4: FALSE | E4: FALSE | F4: FALSE | G4: FALSE | H4: FALSE | J4: 0.16427 | K4: =A4 -> Basic CARE Res. (EL-1) | L4: 0.14839 | M4: FALSE | N4: FALSE | O4: FALSE | P4: FALSE | Q4: FALSE | R4: FALSE | T4: Basic CARE Res. (EL-1) | U4: =L4 -> 0.14839 | V4: FALSE | W4: FALSE | X4: FALSE | Y4: FALSE | Z4: FALSE | AA4: FALSE | AC4: =T4 -> Basic CARE Res. (EL-1) | AD4: 0.21837 | AE4: FALSE | AF4: FALSE | AG4: FALSE | AH4: FALSE | AI4: FALSE | AJ4: FALSE
A5: E-TOU-A | B5: =L5 -> FALSE | C5: =M5+D17 -> 0.28756 | D5: =N5 -> FALSE | E5: =O5+D17 -> 0.21198 | F5: =P5+D17 -> 0.1696 | G5: FALSE | H5: =R5+D17 -> 0.1553 | J5: =J3 -> 0.32854 | K5: =A5 -> E-TOU-A | L5: FALSE | M5: 0.40556 | N5: FALSE | O5: 0.32998 | P5: 0.2876 | Q5: FALSE | R5: 0.2733 | T5: E-TOU-A | U5: =L5 -> FALSE | V5: 0.40556 | W5: FALSE | X5: 0.32998 | Y5: 0.2876 | Z5: FALSE | AA5: 0.2733 | AC5: =T5 -> E-TOU-A | AD5: =U5 -> FALSE | AE5: =V5 -> 0.40556 | AF5: =W5 -> FALSE | AG5: =X5 -> 0.32998 | AH5: =Y5 -> 0.2876 | AI5: =Z5 -> FALSE | AJ5: =AA5 -> 0.2733
A6: E-TOU-B | B6: =L6 -> FALSE | C6: =M6 -> 0.35817 | D6: FALSE | E6: =O6 -> 0.25511 | F6: 0.22071 | G6: FALSE | H6: =R6 -> 0.20191 | J6: =J3 -> 0.32854 | K6: E-TOU-B | L6: FALSE | M6: 0.35817 | N6: FALSE | O6: 0.25511 | P6: 0.22071 | Q6: FALSE | R6: 0.20191 | T6: E-TOU-B | U6: FALSE | V6: 0.35817 | W6: FALSE | X6: 0.25511 | Y6: 0.22071 | Z6: FALSE | AA6: 0.20191 | AC6: E-TOU-B | AD6: =U6 -> FALSE | AE6: 0.35817 | AF6: FALSE | AG6: 0.25511 | AH6: 0.22071 | AI6: FALSE | AJ6: 0.20191
A7: EL-TOU-A (CARE) | B7: =L7 -> FALSE | C7: =M7+D18 -> 0.18591 | D7: =N7 -> FALSE | E7: =O7+D18 -> 0.1383 | F7: =P7+D18 -> 0.11159 | G7: =Q7 -> FALSE | H7: =R7+D18 -> 0.10258 | J7: =J4 -> 0.16427 | K7: EL-TOU-A (CARE) | L7: FALSE | M7: 0.23334 | N7: FALSE | O7: 0.18573 | P7: 0.15902 | Q7: FALSE | R7: 0.15001 | T7: EL-TOU-A (CARE) | U7: =L7 -> FALSE | V7: =M7 -> 0.23334 | W7: =N7 -> FALSE | X7: =O7 -> 0.18573 | Y7: =P7 -> 0.15902 | Z7: =Q7 -> FALSE | AA7: =R7 -> 0.15001 | AC7: EL-TOU-A (CARE) | AD7: =U7 -> FALSE | AE7: =V7 -> 0.23334 | AF7: =W7 -> FALSE | AG7: =X7 -> 0.18573 | AH7: =Y7 -> 0.15902 | AI7: =Z7 -> FALSE | AJ7: =AA7 -> 0.15001
A8: EL-TOU-B (CARE) | B8: FALSE | C8: =M8 -> 0.21822 | D8: FALSE | E8: =O8 -> 0.1533 | F8: =P8 -> 0.13163 | G8: FALSE | H8: =R8 -> 0.11978 | J8: =J4 -> 0.16427 | K8: EL-TOU-B (CARE) | L8: FALSE | M8: 0.21822 | N8: FALSE | O8: 0.1533 | P8: 0.13163 | Q8: FALSE | R8: 0.11978 | T8: EL-TOU-B (CARE) | U8: =L8 -> FALSE | V8: =M8 -> 0.21822 | W8: =N8 -> FALSE | X8: =O8 -> 0.1533 | Y8: =P8 -> 0.13163 | Z8: =Q8 -> FALSE | AA8: =R8 -> 0.11978 | AC8: =T8 -> EL-TOU-B (CARE) | AD8: =U8 -> FALSE | AE8: =V8 -> 0.21822 | AF8: =W8 -> FALSE | AG8: =X8 -> 0.1533 | AH8: =Y8 -> 0.13163 | AI8: =Z8 -> FALSE | AJ8: =AA8 -> 0.11978
A9: EV-A | B9: FALSE | C9: 0.44549 | D9: 0.24311 | E9: 0.11628 | F9: 0.31374 | G9: 0.19197 | H9: 0.11904 | J9: =J3 -> 0.32854 | K9: EV-A | L9: =B9 -> FALSE | M9: =C9 -> 0.44549 | N9: =D9 -> 0.24311 | O9: =E9 -> 0.11628 | P9: =F9 -> 0.31374 | Q9: =G9 -> 0.19197 | R9: =H9 -> 0.11904 | T9: EV-A | U9: =L9 -> FALSE | V9: =M9 -> 0.44549 | W9: =N9 -> 0.24311 | X9: =O9 -> 0.11628 | Y9: =P9 -> 0.31374 | Z9: =Q9 -> 0.19197 | AA9: =R9 -> 0.11904 | AC9: EV-A | AD9: FALSE | AE9: 0.44549 | AF9: 0.24311 | AG9: 0.11628 | AH9: 0.31374 | AI9: 0.19197 | AJ9: 0.11904
A10: EV-B | B10: FALSE | C10: 0.43901 | D10: 0.23988 | E10: 0.11581 | F10: 0.30685 | G10: 0.18853 | H10: 0.11854 | I10: 0.04928 | J10: =J3 -> 0.32854 | K10: EV-B | L10: FALSE | M10: 0.43901 | N10: 0.23988 | O10: 0.11581 | P10: 0.30685 | Q10: 0.18853 | R10: 0.11854 | T10: EV-B | U10: FALSE | V10: 0.43901 | W10: 0.23988 | X10: 0.11581 | Y10: 0.30685 | Z10: 0.18853 | AA10: 0.11854 | AC10: EV-B | AD10: FALSE | AE10: 0.43901 | AF10: 0.23988 | AG10: 0.11581 | AH10: 0.30685 | AI10: 0.18853 | AJ10: 0.11854
A12: ="--- Closed Rates ---" -> --- Closed Rates --- | K12: =A12 -> --- Closed Rates --- | T12: =K12 -> --- Closed Rates --- | AC12: --- Closed Rates ---
A13: E-6 (Time-of-Use) | B13: FALSE | C13: 0.34307 | D13: 0.2278 | E13: 0.15102 | F13: FALSE | G13: 0.17219 | H13: 0.15536 | I13: 0.25298 | J13: =J3 -> 0.32854 | K13: E-6 (Time-of-Use) | L13: FALSE | M13: 0.4023 | N13: 0.28703 | O13: 0.21026 | P13: FALSE | Q13: 0.23142 | R13: 0.21459 | T13: =K13 -> E-6 (Time-of-Use) | U13: FALSE | V13: =M13 -> 0.4023 | W13: =N13 -> 0.28703 | X13: =O13 -> 0.21026 | Y13: FALSE | Z13: =Q13 -> 0.23142 | AA13: =R13 -> 0.21459 | AC13: E-6 (Time-of-Use) | AD13: FALSE | AE13: 0.56171 | AF13: 0.44644 | AG13: 0.36966 | AH13: FALSE | AI13: 0.39083 | AJ13: 0.374
A14: EL-6 (CARE, Time-of-Use) | B14: FALSE | C14: 0.23705 | D14: 0.15255 | E14: 0.09627 | F14: FALSE | G14: 0.11179 | H14: 0.09944 | I14: 0.20238 | J14: =J4 -> 0.16427 | K14: EL-6 (CARE, Time-of-Use) | L14: FALSE | M14: 0.26627 | N14: 0.18177 | O14: 0.12549 | P14: FALSE | Q14: 0.14099 | R14: 0.12865 | T14: =K14 -> EL-6 (CARE, Time-of-Use) | U14: FALSE | V14: =M14 -> 0.26627 | W14: 0.18177 | X14: 0.12549 | Y14: FALSE | Z14: 0.14099 | AA14: 0.12865 | AC14: EL-6 (CARE, Time-of-Use) | AD14: FALSE | AE14: 0.38846 | AF14: 0.2654 | AG14: 0.18344 | AH14: FALSE | AI14: 0.20604 | AJ14: 0.18806
A17: Baseline Credit (E-TOU only) | D17: -0.118
A18: Baseline Credit (EL-TOU only) | D18: -0.04743
A20: PG&E Generation Rate | B20: All Usage | C20: =C2 -> S Pk | D20: S Pt | E20: S Off | F20: W Pk | G20: W Pt | H20: W Off
A21: =A3 -> Basic Residential (E-1) | B21: 0.09684 | C21: FALSE | D21: FALSE | E21: FALSE | F21: FALSE | G21: FALSE | H21: FALSE
A22: =A4 -> Basic CARE Res. (EL-1) | B22: =B21 -> 0.09684 | C22: FALSE | D22: FALSE | E22: FALSE | F22: FALSE | G22: FALSE | H22: FALSE
A23: =A5 -> E-TOU-A | B23: FALSE | C23: 0.18178 | D23: FALSE | E23: 0.1062 | F23: 0.09444 | G23: FALSE | H23: 0.08014
A24: =A6 -> E-TOU-B | B24: FALSE | C24: 0.20403 | D24: FALSE | E24: 0.10097 | F24: 0.0972 | G24: FALSE | H24: 0.0784
A25: =A7 -> EL-TOU-A (CARE) | B25: FALSE | C25: 0.18178 | D25: FALSE | E25: 0.1062 | F25: 0.09444 | G25: FALSE | H25: 0.08014
A26: EL-TOU-B (CARE) | B26: FALSE | C26: 0.20403 | D26: FALSE | E26: 0.10097 | F26: 0.0972 | G26: FALSE | H26: 0.0784
A27: =A9 -> EV-A | B27: FALSE | C27: 0.22778 | D27: 0.10977 | E27: 0.05516 | F27: 0.08512 | G27: 0.05318 | H27: 0.05713
A28: =A10 -> EV-B | B28: FALSE | C28: =C27 -> 0.22778 | D28: =D27 -> 0.10977 | E28: 0.05516 | F28: 0.08512 | G28: 0.05318 | H28: 0.05713
A30: =A12 -> --- Closed Rates ---
A31: =A13 -> E-6 (Time-of-Use) | B31: FALSE | C31: 0.21338 | D31: 0.11209 | E31: 0.07075 | F31: FALSE | G31: 0.0937 | H31: 0.08233
A32: =A14 -> EL-6 (CARE, Time-of-Use) | B32: FALSE | C32: =C31 -> 0.21338 | D32: =D31 -> 0.11209 | E32: 0.07075 | F32: FALSE | G32: 0.0937 | H32: 0.08233
A36: PCEA Generation Rate | B36: All Usage | C36: =C2 -> S Pk | D36: =D2 -> S Pt | E36: S Off | F36: W Pk | G36: W Pt | H36: W Off
A37: =A3 -> Basic Residential (E-1) | B37: 0.06815 | C37: FALSE | D37: FALSE | E37: FALSE | F37: FALSE | G37: FALSE | H37: FALSE
A38: =A4 -> Basic CARE Res. (EL-1) | B38: =B37 -> 0.06815 | C38: FALSE | D38: FALSE | E38: FALSE | F38: FALSE | G38: FALSE | H38: FALSE
A39: =A5 -> E-TOU-A | B39: FALSE | C39: 0.14884 | D39: FALSE | E39: 0.07704 | F39: 0.06587 | G39: FALSE | H39: 0.05228
A40: =A6 -> E-TOU-B | B40: FALSE | C40: 0.16998 | D40: FALSE | E40: 0.07207 | F40: 0.06849 | G40: FALSE | H40: 0.05063
A41: =A7 -> EL-TOU-A (CARE) | B41: FALSE | C41: =C39 -> 0.14884 | D41: FALSE | E41: =E39 -> 0.07704 | F41: =F39 -> 0.06587 | G41: FALSE | H41: =H39 -> 0.05228
A42: EL-TOU-B (CARE) | B42: FALSE | C42: =C40 -> 0.16998 | D42: FALSE | E42: =E40 -> 0.07207 | F42: =F40 -> 0.06849 | G42: FALSE | H42: =H40 -> 0.05063
A43: =A9 -> EV-A | B43: FALSE | C43: 0.19254 | D43: 0.08043 | E43: 0.02855 | F43: 0.05701 | G43: 0.02667 | H43: 0.03042
A44: =A10 -> EV-B | B44: FALSE | C44: =C43 -> 0.19254 | D44: =D43 -> 0.08043 | E44: =E43 -> 0.02855 | F44: =F43 -> 0.05701 | G44: =G43 -> 0.02667 | H44: =H43 -> 0.03042
A46: =A12 -> --- Closed Rates ---
A47: =A13 -> E-6 (Time-of-Use) | B47: FALSE | C47: 0.17886 | D47: 0.08264 | E47: 0.04336 | F47: FALSE | G47: 0.06517 | H47: 0.05436
A48: =A14 -> EL-6 (CARE, Time-of-Use) | B48: FALSE | C48: =C47 -> 0.17886 | D48: =D47 -> 0.08264 | E48: =E47 -> 0.04336 | F48: =F47 -> FALSE | G48: =G47 -> 0.06517 | H48: =H47 -> 0.05436

Sheet Changelog (hidden)
A1: Date | B1: Change
A2: 2016-04-29 | B2: Beta version completed, to staff for review.
A3: 2016-05-04 | B3: Cosmetic Changes
B4: Corrected EV rate description
B5: Hid and locked cell editing for public use to restrict potentially breaking calculations
